bitfinex/quotes_BTCUSD_20240727
["timestamp","ask_amount","ask_price","bid_price","bid_amount"]
[1722095815692,0.02475475,68982.0,68981.0,0.884435]
[1722095816036,0.02475475,68982.0,68981.0,1.174369]
[1722095816842,0.02475475,68982.0,68981.0,1.164369]
[1722095816843,0.02375475,68982.0,68981.0,1.164369]
[1722095818028,0.02275475,68982.0,68981.0,1.153369]
[1722095818403,0.02275475,68982.0,68981.0,1.167369]
[1722095818828,0.02275475,68982.0,68981.0,1.181369]
[1722095819000,0.02275475,68982.0,68981.0,0.891435]
[1722095819319,0.02275475,68982.0,68981.0,0.462901]
[1722095821000,0.02275475,68982.0,68981.0,0.172967]
[1722095821200,0.02275475,68982.0,68981.0,0.462901]
[1722095822074,0.02275475,68982.0,68981.0,0.028]
[1722095822426,0.02275475,68982.0,68981.0,0.172967]
[1722095823337,0.0633,68988.0,68981.0,0.172967]
[1722095823552,0.07512979,68985.0,68981.0,0.028]
[1722095824763,0.07512979,68985.0,68981.0,0.158966]
[1722095824980,0.07512979,68985.0,68981.0,0.014]
[1722095825137,0.07512979,68985.0,68981.0,0.028]
[1722095825322,0.07512979,68985.0,68981.0,0.014]
[1722095825499,0.07512979,68985.0,68980.0,0.144968]
[1722095825699,0.07512979,68985.0,68981.0,0.014]
[1722095826061,0.07512979,68985.0,68981.0,0.026]
[1722095826415,0.07512979,68985.0,68980.0,0.144968]
[1722095826637,0.09788477,68985.0,68980.0,0.144968]
[1722095826857,0.09788477,68985.0,68980.0,0.158968]
[1722095827000,0.07512979,68985.0,68980.0,0.014]
[1722095827849,0.07512979,68985.0,68980.0,0.028]
[1722095828951,0.07512979,68985.0,68982.0,0.1424]
[1722095829743,0.1392,68994.0,68982.0,0.1424]
[1722095829744,0.10840808,68993.0,68982.0,0.1424]
[1722095829946,0.28414,68994.0,68986.0,0.144956]
[1722095830141,0.07512979,68993.0,68987.0,0.144953]
[1722095830526,0.07512979,68993.0,68984.0,0.28992]
[1722095830728,0.07512979,68986.0,68985.0,0.144959]
[1722095832210,0.07512979,68986.0,68982.0,0.1424]
[1722095832425,0.07512979,68986.0,68985.0,0.158959]
[1722095833199,0.07512979,68986.0,68985.0,0.172959]
[1722095833881,0.09788378,68986.0,68985.0,0.172959]
[1722095834474,0.07512979,68986.0,68985.0,0.172959]
[1722095834714,0.07512979,68986.0,68985.0,0.158959]
[1722095835767,0.07512979,68986.0,68985.0,0.172959]
[1722095835974,0.07512979,68993.0,68986.0,0.144956]
[1722095836155,0.22007179,68993.0,68986.0,0.144956]
[1722095836360,0.07512979,68993.0,68985.0,0.028]
[1722095836546,0.22007179,68993.0,68985.0,0.172957]
[1722095836728,0.32864594,68993.0,68985.0,0.172957]
[1722095836928,0.144944,68992.0,68985.0,0.158957]
[1722095837127,0.0825,68986.0,68985.0,0.144958]
[1722095837506,0.0825,68986.0,68983.0,0.434886]
[1722095837847,0.0825,68986.0,68984.0,0.144959]
[1722095838134,0.0825,68986.0,68985.0,0.144959]
[1722095838977,0.10525399,68986.0,68985.0,0.144959]
[1722095839320,0.10525399,68986.0,68984.0,0.144961]
[1722095839542,0.07512979,68985.0,68983.0,0.144962]
[1722095840127,0.10525399,68986.0,68984.0,0.144961]
[1722095840521,0.07512979,68985.0,68983.0,0.144962]
[1722095841084,0.07512979,68985.0,68983.0,0.158962]
[1722095841820,0.07512979,68985.0,68983.0,0.172962]
[1722095842867,0.07512979,68985.0,68983.0,0.028]
[1722095843456,0.07512979,68985.0,68983.0,0.172963]
[1722095844990,0.07512979,68985.0,68984.0,0.144961]
[1722095846615,0.07512979,68985.0,68984.0,0.158961]
[1722095848121,0.07512979,68985.0,68984.0,0.028]
[1722095851624,0.09788403,68985.0,68984.0,0.028]
[1722095851891,0.09788403,68985.0,68984.0,0.172961]
[1722095852164,0.07512979,68985.0,68984.0,0.173885]
[1722095852694,0.07512979,68985.0,68984.0,0.028924]
[1722095853410,0.07512979,68985.0,68984.0,0.173885]
[1722095854850,0.09788403,68985.0,68984.0,0.173885]
[1722095855455,0.09788403,68985.0,68984.0,0.028924]
[1722095859383,0.09788403,68985.0,68984.0,0.173885]
[1722095859591,0.09788403,68985.0,68984.0,0.028924]
[1722095859994,0.12062701,68985.0,68984.0,0.028924]
[1722095862080,0.12062701,68985.0,68984.0,0.173885]
[1722095863453,0.09787277,68985.0,68984.0,0.463807]
[1722095863768,0.09787277,68985.0,68984.0,0.173885]
[1722095864140,0.02274298,68985.0,68984.0,0.898729]
[1722095864425,0.02274298,68985.0,68984.0,1.30912594]
[1722095864643,0.10885502,69004.0,69003.0,0.144921]
[1722095864839,0.00084,69005.0,69004.0,0.144919]
[1722095865075,0.00084,69005.0,69004.0,0.434757]
[1722095865589,0.00084,69005.0,69001.0,0.289849]
[1722095865798,0.07512979,69003.0,69002.0,0.434769]
[1722095866416,0.0978783,69003.0,69002.0,0.144923]
[1722095866617,0.0978783,69003.0,68999.0,0.289859]
[1722095867031,0.0978783,69003.0,69001.0,0.144924]
[1722095867884,0.07512979,69003.0,69001.0,0.144924]
[1722095868746,0.07512979,69003.0,69002.0,0.008]
[1722095869192,0.07512979,69003.0,69001.0,0.007]
[1722095869418,0.07512979,69003.0,69000.0,0.144926]
[1722095869693,0.07512979,69003.0,69001.0,0.162924]
[1722095869905,0.07512979,69003.0,69001.0,0.152924]
[1722095870146,0.07512979,69003.0,69001.0,0.144924]
[1722095870343,0.07512979,69003.0,69002.0,0.018]
[1722095870496,0.07512979,69003.0,69002.0,0.008]
[1722095870693,0.0825,69004.0,69002.0,0.008]
[1722095870857,0.00084,69005.0,69004.0,0.434757]
[1722095871257,0.00084,69005.0,69004.0,0.513957]
[1722095871424,0.00084,69005.0,69004.0,0.224119]
[1722095872143,0.00084,69005.0,69003.0,0.14492]
[1722095872303,0.08334,69005.0,69002.0,0.144921]
[1722095873252,0.08334,69005.0,69004.0,0.007]
[1722095873467,0.08334,69005.0,69004.0,0.013]
[1722095873675,0.08334,69005.0,69004.0,0.006]
[1722095874551,0.08334,69005.0,69004.0,0.013]
[1722095874552,0.10608821,69005.0,69004.0,0.013]
[1722095874941,0.00084,69005.0,69004.0,0.157919]
[1722095875283,0.02357641,69005.0,69004.0,0.157919]
[1722095875480,0.02357641,69005.0,69004.0,0.441757]
[1722095875702,0.04632453,69005.0,69004.0,0.441757]
[1722095876763,0.02357641,69005.0,69004.0,0.447757]
[1722095877128,0.02357641,69005.0,69004.0,0.441757]
[1722095877337,0.02357641,69005.0,69004.0,0.434757]
[1722095877572,0.02357641,69005.0,69004.0,0.462757]
[1722095880587,0.10607641,69005.0,69004.0,0.172919]
[1722095881485,0.12882463,69005.0,69004.0,0.172919]
[1722095881717,0.12882463,69005.0,69004.0,0.462757]
[1722095881939,0.10607641,69005.0,69004.0,0.462757]
[1722095883731,0.10607641,69005.0,69004.0,0.028]
[1722095883934,0.10607641,69005.0,69004.0,0.172919]
[1722095884129,0.10607641,69005.0,69004.0,0.173843]
[1722095884544,0.12882458,69005.0,69004.0,0.173843]
[1722095885772,0.26672458,69005.0,69004.0,0.028924]
[1722095886472,0.26809478,69005.0,69004.0,0.028924]
[1722095887056,0.26672458,69005.0,69004.0,0.028924]
[1722095887252,0.41164158,69005.0,69004.0,0.028924]
[1722095888606,0.38889341,69005.0,69004.0,0.028924]
[1722095890365,0.68028161,69005.0,69004.0,0.028924]
[1722095890917,0.67872741,69005.0,69004.0,0.028924]
[1722095891670,0.96856141,69005.0,69004.0,0.028924]
[1722095891870,0.9913102,69005.0,69004.0,0.028924]
[1722095892254,0.96856141,69005.0,69004.0,0.028924]
[1722095893039,0.96856141,69005.0,69004.0,0.014924]
[1722095893409,0.96856141,69005.0,69004.0,0.019924]
[1722095894370,0.96856141,69005.0,69004.0,0.005924]
[1722095894799,0.96856141,69005.0,69004.0,0.011924]
[1722095895453,0.9913104,69005.0,69004.0,0.011924]
[1722095896016,0.6189764,69005.0,69004.0,0.011924]
[1722095896219,0.1912424,69005.0,69004.0,0.011924]
[1722095896422,0.0463254,69005.0,69004.0,0.011924]
[1722095896619,0.10607641,69005.0,69004.0,0.011924]
[1722095897983,0.02357641,69005.0,69004.0,0.011924]
[1722095898189,0.10607641,69005.0,69004.0,0.011924]
[1722095903807,0.39591041,69005.0,69004.0,0.011924]
[1722095904005,0.97046141,69005.0,69004.0,0.011924]
[1722095904207,1.39055252,69005.0,69004.0,0.011924]
[1722095904412,1.5728784,69005.0,69004.0,0.011924]
[1722095904610,1.55012941,69005.0,69004.0,0.011924]
[1722095905013,1.55012941,69005.0,69004.0,0.000924]
[1722095905211,1.17779541,69005.0,69004.0,0.000924]
[1722095905428,1.26129541,69005.0,69004.0,0.000924]
[1722095905643,1.39164011,69005.0,69004.0,0.000924]
[1722095906422,1.26029541,69005.0,69004.0,0.000924]
[1722095906595,1.26129541,69005.0,69004.0,0.000924]
[1722095906809,1.28404813,69005.0,69004.0,0.000924]
[1722095907015,1.28304813,69005.0,69004.0,0.000924]
[1722095907522,1.28404813,69005.0,69004.0,0.001924]
[1722095907680,1.28904813,69005.0,69004.0,0.002924]
[1722095910544,1.41936489,69005.0,69004.0,0.002924]
[1722095911289,1.41936468,69005.0,69004.0,0.002924]
[1722095914057,1.28904813,69005.0,69004.0,0.002924]
[1722095916728,1.26629541,69005.0,69004.0,0.002924]
[1722095919052,1.3966114,69005.0,69004.0,0.002924]
[1722095919248,1.26629541,69005.0,69004.0,0.002924]
[1722095919509,1.26129541,69005.0,69004.0,0.001924]
[1722095919683,1.3916114,69005.0,69004.0,0.001924]
[1722095919895,1.26629541,69005.0,69004.0,0.001924]
[1722095920101,1.28904773,69005.0,69004.0,0.001924]
[1722095920687,1.28904773,69005.0,69004.0,0.000924]
[1722095920688,1.28804773,69005.0,69004.0,0.000924]
[1722095921071,1.31971911,69005.0,69004.0,0.000924]
[1722095921319,1.29696679,69005.0,69004.0,0.000924]
[1722095921938,1.27029541,69005.0,69004.0,0.000924]
[1722095923251,1.40059404,69005.0,69004.0,0.000924]
[1722095923996,1.27029541,69005.0,69004.0,0.000924]
[1722095926987,0.84066141,69005.0,69004.0,0.000924]
[1722095927422,0.94926789,69005.0,69004.0,0.000924]
[1722095927831,0.84066141,69005.0,69004.0,0.000924]
[1722095928028,0.83566141,69005.0,69004.0,0.000924]
[1722095928261,1.14824633,69005.0,69004.0,0.000924]
[1722095928475,1.15224633,69005.0,69004.0,0.000924]
[1722095928887,1.23304633,69005.0,69004.0,0.000924]
[1722095929085,1.22804633,69005.0,69004.0,0.000924]
[1722095929374,1.36140855,69005.0,69004.0,0.000924]
[1722095930171,1.29144633,69005.0,69004.0,0.000924]
[1722095930836,1.21064633,69005.0,69004.0,0.000924]
[1722095930994,1.15024633,69005.0,69004.0,0.000924]
[1722095934529,1.12749541,69005.0,69004.0,0.000924]
[1722095935441,1.25792345,69005.0,69004.0,0.000924]
[1722095936807,0.96808945,69005.0,69004.0,0.000924]
[1722095936992,0.83766141,69005.0,69004.0,0.000924]
[1722095937192,0.54782741,69005.0,69004.0,0.000924]
[1722095937647,0.57057799,69005.0,69004.0,0.000924]
[1722095938050,0.86041199,69005.0,69004.0,0.000924]
[1722095938250,0.16201886,69005.0,69004.0,0.062424]
[1722095938473,0.05332699,69005.0,69004.0,0.142124]
[1722095938677,0.03057641,69005.0,69004.0,0.142124]
[1722095939500,0.02657641,69005.0,69004.0,0.142124]
[1722095939707,0.02357641,69005.0,69004.0,0.142124]
[1722095939904,0.02357641,69005.0,69004.0,0.150124]
[1722095940203,0.02357641,69005.0,69004.0,0.584881]
[1722095940918,0.02357641,69005.0,69004.0,0.295043]
[1722095941115,0.02357641,69005.0,69004.0,0.150124]
[1722095941300,0.10607641,69005.0,69004.0,0.150124]
[1722095941504,0.10607641,69005.0,69004.0,0.156124]
[1722095941707,0.12882472,69005.0,69004.0,0.156124]
[1722095942825,0.10607641,69005.0,69004.0,0.156124]
[1722095943247,0.25099341,69005.0,69004.0,0.014924]
[1722095943616,0.54082741,69005.0,69004.0,0.014924]
[1722095943976,0.10607641,69005.0,69004.0,0.014924]
[1722095944173,0.02357641,69005.0,69004.0,0.094624]
[1722095944477,0.02357641,69005.0,69004.0,0.301043]
[1722095944654,0.02357641,69005.0,69004.0,0.590881]
[1722095944860,0.02357641,69005.0,69004.0,0.880719]
[1722095945655,0.02357641,69005.0,69004.0,0.874719]
[1722095945948,0.02357641,69005.0,69004.0,0.576881]
[1722095946146,0.02357641,69005.0,69004.0,0.590881]
[1722095946547,0.02357641,69005.0,69004.0,0.596881]
[1722095947188,0.02357641,69005.0,69004.0,0.590881]
[1722095947504,0.02357641,69005.0,69004.0,0.601881]
[1722095950520,0.04632457,69005.0,69004.0,0.601881]
[1722095952062,0.02357641,69005.0,69004.0,0.601881]
[1722095953264,0.02357641,69005.0,69004.0,0.025924]
[1722095955187,0.04632513,69005.0,69004.0,0.025924]
[1722095956075,0.48107613,69005.0,69004.0,0.025924]
[1722095956402,0.19124213,69005.0,69004.0,0.025924]
[1722095956887,0.04632513,69005.0,69004.0,0.025924]
[1722095957244,0.19124213,69005.0,69004.0,0.025924]
[1722095959184,0.04632513,69005.0,69004.0,0.025924]
[1722095959368,0.19124213,69005.0,69004.0,0.025924]
[1722095961551,0.48107613,69005.0,69004.0,0.025924]
[1722095963165,0.77091013,69005.0,69004.0,0.025924]
[1722095963432,0.48107613,69005.0,69004.0,0.025924]
[1722095963931,0.04632513,69005.0,69004.0,0.025924]
[1722095964136,0.04632513,69005.0,69004.0,0.088724]
[1722095966398,0.04632513,69005.0,69004.0,0.310643]
[1722095966800,0.04632513,69005.0,69004.0,0.600481]
[1722095967572,0.02357641,69005.0,69004.0,0.600481]
[1722095969267,0.02357641,69005.0,69004.0,0.890319]
[1722095970466,0.02357641,69005.0,69004.0,0.600481]
[1722095970870,0.04632485,69005.0,69004.0,0.600481]
[1722095971274,0.02357641,69005.0,69004.0,0.600481]
[1722095974113,0.04632488,69005.0,69004.0,0.600481]
[1722095974896,0.04632488,69005.0,69004.0,0.60945706]
[1722095975329,0.04632488,69005.0,69004.0,0.89929506]
[1722095975902,0.02357641,69005.0,69004.0,0.89929506]
[1722095977317,0.02357641,69005.0,69004.0,0.60945706]
[1722095979314,0.04632487,69005.0,69004.0,0.60945706]
[1722095981624,0.04632487,69005.0,69004.0,0.89929506]
[1722095981848,0.02357641,69005.0,69004.0,0.89929506]
[1722095982051,0.02357641,69005.0,69004.0,0.60945706]
[1722095983682,0.02357641,69005.0,69004.0,0.89929506]
[1722095984066,0.02357641,69005.0,69004.0,0.60945706]
[1722095984490,0.02357641,69005.0,69004.0,0.89929506]
[1722095984966,0.04632491,69005.0,69004.0,0.60945706]
[1722095985164,0.04632491,69005.0,69004.0,0.89929506]
[1722095985398,0.04632491,69005.0,69004.0,0.60945706]
[1722095985604,0.04632491,69005.0,69004.0,0.89929506]
[1722095986243,0.04632491,69005.0,69004.0,0.60945706]
[1722095986537,0.02357641,69005.0,69004.0,0.60945706]
[1722095986952,0.02357641,69005.0,69004.0,0.89929506]
[1722095988292,0.02357641,69005.0,69004.0,0.89848915]
[1722095990040,0.04632482,69005.0,69004.0,0.89848915]
[1722095990487,0.04632482,69005.0,69004.0,0.60865115]
[1722095990780,0.04632482,69005.0,69004.0,0.89848915]
[1722095995585,0.02357641,69005.0,69004.0,0.89848915]
[1722095998934,0.04632478,69005.0,69004.0,0.89848915]
[1722096001864,0.00084,69005.0,69004.0,0.89848915]
[1722096002226,0.00084,69005.0,69004.0,1.3087638]
[1722096002403,0.00084,69005.0,69004.0,0.89848915]
[1722096002580,0.00084,69005.0,69004.0,1.01892607]
[1722096003424,0.00084,69005.0,69004.0,1.30876407]
[1722096003553,0.00084,69005.0,69004.0,1.01892607]
[1722096003752,0.00084,69005.0,69004.0,0.58928807]
[1722096003975,0.00084,69005.0,69004.0,0.45485115]
[1722096004368,0.00084,69005.0,69004.0,0.44385115]
[1722096004571,0.00084,69005.0,69004.0,0.45785115]
[1722096004806,0.00084,69005.0,69004.0,0.01411809]
[1722096004807,0.583891,69005.0,69004.0,0.01411809]
[1722096005007,0.583891,69005.0,69004.0,0.02611809]
[1722096005008,0.8752792,69005.0,69004.0,0.02611809]
[1722096005149,0.1506942,69005.0,69004.0,0.02611809]
[1722096005349,0.14914,69005.0,69004.0,0.02611809]
[1722096005666,0.14914,69005.0,69004.0,0.01411809]
[1722096005867,0.1506942,69005.0,69004.0,0.01411809]
[1722096006027,0.1506942,69005.0,69004.0,0.00011809]
[1722096006230,0.1506942,69005.0,69004.0,0.01411809]
[1722096006413,0.23154,69005.0,69004.0,0.02811809]
[1722096006977,0.376457,69005.0,69004.0,0.02811809]
[1722096007114,0.2330942,69005.0,69004.0,0.02811809]
[1722096007934,0.14914,69005.0,69004.0,0.46287509]
[1722096008136,0.00084,69005.0,69004.0,0.02811809]
[1722096009281,0.00084,69005.0,69004.0,0.82791309]
[1722096009440,0.00084,69005.0,69004.0,1.18375109]
[1722096009624,0.00084,69005.0,69004.0,1.30418992]
[1722096010004,0.00084,69005.0,69004.0,1.29018921]
[1722096010466,0.00084,69005.0,69004.0,1.30418921]
[1722096010943,0.00084,69005.0,69004.0,1.31818921]
[1722096011507,0.02358646,69005.0,69004.0,1.30418921]
[1722096011946,0.02358646,69005.0,69004.0,1.31818921]
[1722096012146,0.00084,69005.0,69004.0,1.31818921]
[1722096012466,0.00084,69005.0,69004.0,1.15575109]
[1722096012668,0.00084,69005.0,69004.0,1.16975109]
[1722096013435,0.00084,69005.0,69004.0,1.45958909]
[1722096013548,0.00084,69005.0,69004.0,1.29018341]
[1722096014009,0.00084,69005.0,69004.0,0.14855041]
[1722096014207,0.14564,69005.0,69004.0,0.02811809]
[1722096014567,0.19236578,69005.0,69004.0,0.02811809]
[1722096014769,0.14564,69005.0,69004.0,0.02811809]
[1722096015168,0.14564,69005.0,69004.0,0.17303709]
[1722096015579,0.14564,69005.0,69004.0,0.02811809]
[1722096015790,0.14564,69005.0,69004.0,0.46287509]
[1722096015988,0.16837642,69005.0,69004.0,0.02811809]
[1722096016193,0.02357642,69005.0,69004.0,0.89391309]
[1722096016414,0.02357642,69005.0,69004.0,0.46287509]
[1722096016785,0.08917642,69005.0,69004.0,0.46287509]
[1722096017132,0.08917642,69005.0,69004.0,0.17303709]
[1722096017133,0.09073062,69005.0,69004.0,0.17303709]
[1722096017333,0.08917642,69005.0,69004.0,0.17303709]
[1722096017541,0.09073062,69005.0,69004.0,0.17303709]
[1722096017743,0.08917642,69005.0,69004.0,0.17303709]
[1722096019477,0.08917642,69005.0,69004.0,0.02811809]
[1722096019678,0.11192418,69005.0,69004.0,0.02811809]
[1722096020821,0.08917642,69005.0,69004.0,0.02811809]
[1722096021068,0.09073062,69005.0,69004.0,0.02811809]
[1722096021215,0.08917642,69005.0,69004.0,0.02811809]
[1722096022303,0.52392742,69005.0,69004.0,0.01411809]
[1722096022702,0.54667572,69005.0,69004.0,0.00011809]
[1722096022909,0.54667572,69005.0,69004.0,0.01411809]
[1722096023486,0.54667572,69005.0,69004.0,0.02811809]
[1722096023691,0.54667572,69005.0,69004.0,0.01411809]
[1722096024179,0.54667572,69005.0,69004.0,0.02811809]
[1722096025569,0.52392742,69005.0,69004.0,0.02811809]
[1722096026147,0.89451562,69005.0,69004.0,0.02811809]
[1722096026313,0.89296142,69005.0,69004.0,0.00536993]
[1722096026716,0.89395686,69005.0,69004.0,0.00536993]
[1722096026957,0.89296142,69005.0,69004.0,0.00536993]
[1722096027144,0.60312742,69005.0,69004.0,0.00536993]
[1722096027361,0.89296142,69005.0,69004.0,0.00536993]
[1722096028208,0.36496379,69005.0,69004.0,0.00536993]
[1722096028380,0.144917,69005.0,69004.0,0.00536993]
[1722096028561,0.434751,69005.0,69004.0,0.00536993]
[1722096028909,0.724585,69005.0,69004.0,0.00536993]
[1722096029203,0.434751,69005.0,69004.0,0.00536993]
[1722096029552,0.4363052,69005.0,69004.0,0.00536993]
[1722096029754,0.434751,69005.0,69004.0,0.00536993]
[1722096029946,0.43571094,69005.0,69004.0,0.00536993]
[1722096030144,0.724585,69005.0,69004.0,0.00536993]
[1722096031263,0.864685,69005.0,69004.0,0.00536993]
[1722096034185,0.88743457,69005.0,69004.0,0.00536993]
[1722096034585,0.864685,69005.0,69004.0,0.00536993]
[1722096036150,0.144924,69002.0,68993.0,0.144941]
[1722096036294,0.07646054,69004.0,68992.0,0.00877214]
[1722096036499,0.144924,69002.0,68994.0,0.14494]
[1722096036948,0.144925,69001.0,68991.0,0.43159]
[1722096037155,0.144925,69001.0,68993.0,0.144941]
[1722096037381,0.144925,69001.0,68993.0,0.02]
[1722096037522,0.0825,68996.0,68993.0,0.009]
[1722096037735,0.01375,68993.0,68991.0,0.1417]
[1722096038651,0.01375,68993.0,68978.0,0.5573]
[1722096038652,0.01375,68993.0,68983.0,0.289923]
[1722096038862,0.09625,68993.0,68988.0,0.0783]
[1722096039060,0.0978042,68993.0,68988.0,0.0783]
[1722096039263,0.0978042,68993.0,68984.0,0.079224]
[1722096039467,0.0825,68987.0,68984.0,0.079224]
[1722096039877,0.144951,68989.0,68984.0,0.079224]
[1722096040126,0.144951,68989.0,68988.0,0.014]
[1722096040336,0.144951,68989.0,68984.0,0.079224]
[1722096040540,0.144951,68989.0,68984.0,0.091224]
[1722096040748,0.001,68987.0,68984.0,0.105224]
[1722096041019,0.144951,68989.0,68984.0,0.079224]
[1722096042288,0.145951,68989.0,68988.0,0.014]
[1722096042503,0.146951,68989.0,68988.0,0.018]
[1722096042841,0.145951,68989.0,68988.0,0.004]
[1722096042994,0.146951,68989.0,68988.0,0.004]
[1722096044040,0.147951,68989.0,68988.0,0.018]
[1722096044259,0.437852,68989.0,68988.0,0.018]
[1722096044632,0.807353,68989.0,68988.0,0.018]
[1722096044834,1.28267761,68989.0,68988.0,0.018]
[1722096045034,1.156754,68989.0,68988.0,0.014]
[1722096045515,1.157754,68989.0,68988.0,0.014]
[1722096045865,0.434877,68985.0,68984.0,0.011924]
[1722096046067,0.00898309,68992.0,68984.0,0.000924]
[1722096046268,0.001,68989.0,68988.0,0.006]
[1722096046476,0.001,68989.0,68988.0,0.0823]
[1722096046775,0.001,68989.0,68988.0,0.0863]
[1722096046994,0.14595,68989.0,68988.0,0.0863]
[1722096047210,0.14495,68989.0,68988.0,0.0823]
[1722096047889,0.144949,68990.0,68988.0,0.0823]
[1722096048102,0.144949,68990.0,68988.0,0.0783]
[1722096048302,0.08232562,68992.0,68985.0,0.1417]
[1722096048480,0.144953,68988.0,68985.0,0.1417]
[1722096048800,0.0825,68986.0,68985.0,0.1417]
[1722096049109,0.144953,68988.0,68985.0,0.1417]
[1722096049303,0.14495,68989.0,68988.0,0.001]
[1722096049477,0.36501579,68993.0,68988.0,0.001]
[1722096049805,0.07512979,68993.0,68988.0,0.001]
[1722096049959,0.07512979,68993.0,68986.0,0.144955]
[1722096050163,0.0605,68995.0,68987.0,0.144954]
[1722096050374,0.1464942,68994.0,68986.0,0.144956]
[1722096050552,0.1464942,68994.0,68985.0,0.1417]
[1722096050553,0.144943,68993.0,68985.0,0.286658]
[1722096050749,0.001,68986.0,68985.0,0.1487]
[1722096051451,0.001,68986.0,68985.0,1.453331]
[1722096051567,0.001,68986.0,68985.0,1.78542663]
[1722096051768,0.001,68986.0,68985.0,1.90498818]
[1722096052074,0.0015542,69017.0,68994.0,0.1417]
[1722096052276,0.0015542,69017.0,69008.0,0.144909]
[1722096052476,0.0015542,69017.0,69011.0,0.144903]
[1722096052677,0.08370932,69018.0,69011.0,0.144903]
[1722096053028,0.08370932,69018.0,69012.0,0.144902]
[1722096053347,0.00116376,69017.0,69012.0,0.144902]
[1722096053538,0.08370932,69018.0,69011.0,0.144903]
[1722096053743,0.00145249,69012.0,69011.0,0.144903]
[1722096053900,0.00145249,69012.0,69010.0,0.144905]
[1722096054085,0.00145249,69012.0,69011.0,0.004]
[1722096055588,0.00145249,69012.0,69011.0,0.144904]
[1722096056040,0.00245249,69012.0,69011.0,0.144904]
[1722096056241,0.00245249,69012.0,69010.0,0.01]
[1722096056449,0.00145249,69012.0,69011.0,0.447712]
[1722096056767,0.00245249,69012.0,69011.0,0.457712]
[1722096057169,0.00245249,69012.0,69011.0,0.447712]
[1722096057170,0.00145249,69012.0,69011.0,0.447712]
[1722096057377,0.00145249,69012.0,69011.0,0.157904]
[1722096057635,0.00245249,69012.0,69011.0,0.157904]
[1722096057997,0.00245249,69012.0,69011.0,0.144904]
[1722096058486,0.00245249,69012.0,69011.0,0.72452]
[1722096059345,0.001,69012.0,69011.0,0.434712]
[1722096059547,0.0015542,69016.0,69014.0,0.144897]
[1722096059695,0.07512979,69017.0,69014.0,0.144897]
[1722096059896,0.07512979,69017.0,69011.0,0.023]
[1722096059897,0.22002279,69017.0,69011.0,0.023]
[1722096060098,0.29562279,69017.0,69011.0,0.023]
[1722096060479,0.06336465,69016.0,69011.0,0.01]
[1722096060978,0.06336465,69016.0,69014.0,0.008]
[1722096061181,0.20825865,69016.0,69014.0,0.008]
[1722096061721,0.00096465,69016.0,69014.0,0.008]
[1722096062287,0.07512979,69017.0,69010.0,0.144906]
[1722096062687,0.07512979,69017.0,69011.0,0.008]
[1722096062887,0.00144083,69016.0,69014.0,0.006]
[1722096063099,0.22102179,69017.0,69014.0,0.006]
[1722096063292,0.0015542,69016.0,69014.0,0.018]
[1722096063489,0.0015542,69016.0,69014.0,0.012]
[1722096063687,0.00084,69019.0,69004.0,0.0766]
[1722096063889,0.00084,69019.0,69011.0,0.01]
[1722096064232,0.00084,69019.0,69016.0,0.144892]
[1722096064548,0.001,69017.0,69016.0,0.144892]
[1722096064920,0.001,69017.0,69015.0,0.144895]
[1722096065573,0.001,69017.0,69016.0,0.57398]
[1722096065782,0.001,69017.0,69016.0,0.863767]
[1722096065929,0.001,69017.0,69016.0,1.153554]
[1722096066361,0.001,69017.0,69016.0,0.863767]
[1722096066704,0.001,69017.0,69016.0,1.153554]
[1722096067018,0.00084,69019.0,69018.0,1.014226]
[1722096067423,0.00184,69019.0,69018.0,1.014226]
[1722096067908,0.00184,69019.0,69018.0,1.153526]
[1722096068020,0.00084,69019.0,69018.0,1.153526]
[1722096068224,0.00084,69019.0,69018.0,1.167526]
[1722096068428,0.00184,69019.0,69018.0,1.181526]
[1722096069154,0.00084,69019.0,69018.0,1.167526]
[1722096069570,0.00084,69019.0,69018.0,1.153526]
[1722096069972,0.00084,69019.0,69018.0,1.167526]
[1722096070436,0.00084,69019.0,69018.0,1.153526]
[1722096070762,0.00084,69019.0,69018.0,1.167526]
[1722096071205,0.00184,69019.0,69018.0,1.181526]
[1722096071577,0.00184,69019.0,69018.0,1.167526]
[1722096071578,0.00084,69019.0,69018.0,1.167526]
[1722096072085,0.00184,69019.0,69018.0,1.181526]
[1722096072499,0.00184,69019.0,69018.0,0.601968]
[1722096072717,0.00184,69019.0,69018.0,0.1673]
[1722096072892,0.00184,69019.0,69018.0,0.312189]
[1722096073295,0.00184,69019.0,69018.0,0.1673]
[1722096073869,0.00184,69019.0,69018.0,0.31073678]
[1722096074220,0.02458183,69019.0,69018.0,0.31073678]
[1722096074834,0.02458183,69019.0,69018.0,0.60051578]
[1722096075474,0.00184,69019.0,69018.0,0.60051578]
[1722096076836,0.00184,69019.0,69018.0,0.89029478]
[1722096078121,0.00184,69019.0,69018.0,0.91942478]
[1722096078513,0.00184,69019.0,69018.0,0.62964578]
[1722096078716,0.02458134,69019.0,69018.0,0.62964578]
[1722096078856,0.02458134,69019.0,69018.0,0.91942478]
[1722096079212,0.02458134,69019.0,69018.0,0.91936478]
[1722096079422,0.02458134,69019.0,69018.0,0.62958578]
[1722096079756,0.02458134,69019.0,69018.0,0.91936478]
[1722096080728,0.02458134,69019.0,69018.0,0.62019291]
[1722096081016,0.02458134,69019.0,69018.0,0.90997191]
[1722096081295,0.02458134,69019.0,69018.0,0.62019291]
[1722096081411,0.02458134,69019.0,69018.0,0.90997191]
[1722096082074,0.02458134,69019.0,69018.0,0.62019291]
[1722096082278,0.02458134,69019.0,69018.0,0.90997191]
[1722096082573,0.00184,69019.0,69018.0,0.90997191]
[1722096083861,0.00184,69019.0,69018.0,0.62019291]
[1722096084062,0.00184,69019.0,69018.0,0.90997191]
[1722096085762,0.02458138,69019.0,69018.0,0.90997191]
[1722096086297,0.00184,69019.0,69018.0,0.90997191]
[1722096089916,0.00184,69019.0,69018.0,1.19975091]
[1722096090445,0.02458121,69019.0,69018.0,1.19975091]
[1722096091207,0.02458121,69019.0,69018.0,0.90997191]
[1722096091375,0.00184,69019.0,69018.0,1.03038363]
[1722096091578,0.00184,69019.0,69018.0,1.32016363]